[Event "*** Titled Tuesday Blitz"]
[Site "Chess.com"]
[Date "2021.04.27"]
[Round "2"]
[White "YaWaleriy"]
[Black "PlotnikovPavel"]
[Result "0-1"]
[WhiteElo "2265"]
[BlackElo "2469"]
[TimeControl "180+1"]
[EndTime "10:18:51 PDT"]
[Termination "PlotnikovPavel won on time"]

1. d4 {[%clk 0:03:00.9]} 1... c5 {[%clk 0:02:58.1]} 2. d5 {[%clk 0:03:00.4]}
2... e5 {[%clk 0:02:57.9]} 3. e4 {[%clk 0:02:57.2]} 3... d6 {[%clk 0:02:57.7]}
4. Nc3 {[%clk 0:02:57.1]} 4... a6 {[%clk 0:02:57.6]} 5. a4 {[%clk 0:02:56.1]}
5... Be7 {[%clk 0:02:57.2]} 6. g3 {[%clk 0:02:49]} 6... h5 {[%clk 0:02:38.8]} 7.
h4 {[%clk 0:02:45.5]} 7... g6 {[%clk 0:02:37.3]} 8. Bh3 {[%clk 0:02:38.9]} 8...
Nh6 {[%clk 0:02:31.8]} 9. Bxc8 {[%clk 0:02:24.7]} 9... Qxc8 {[%clk 0:02:31]} 10.
Nh3 {[%clk 0:02:17.9]} 10... Qg4 {[%clk 0:02:20.2]} 11. Be3 {[%clk 0:01:54.5]}
11... Qxd1+ {[%clk 0:02:15.8]} 12. Rxd1 {[%clk 0:01:53.2]} 12... Ng4 {[%clk
0:02:16.7]} 13. Bd2 {[%clk 0:01:50.4]} 13... Nd7 {[%clk 0:02:10.4]} 14. f3
{[%clk 0:01:49.2]} 14... Ngf6 {[%clk 0:02:08.7]} 15. Nf2 {[%clk 0:01:47.1]}
15... c4 {[%clk 0:02:04]} 16. Be3 {[%clk 0:01:43.2]} 16... Kf8 {[%clk
0:01:50.4]} 17. Ke2 {[%clk 0:01:42]} 17... Kg7 {[%clk 0:01:50]} 18. a5 {[%clk
0:01:41.6]} 18... Rhc8 {[%clk 0:01:49.2]} 19. Ra1 {[%clk 0:01:38.5]} 19... Nc5
{[%clk 0:01:41]} 20. Rhb1 {[%clk 0:01:26.2]} 20... Nfd7 {[%clk 0:01:34.9]} 21.
Nfd1 {[%clk 0:01:25.5]} 21... f5 {[%clk 0:01:29.6]} 22. Nf2 {[%clk 0:01:08.8]}
22... Rf8 {[%clk 0:01:16.6]} 23. Na4 {[%clk 0:01:05.8]} 23... Rac8 {[%clk
0:01:04.2]} 24. Ra3 {[%clk 0:00:56.5]} 24... Bd8 {[%clk 0:00:46.6]} 25. Nxc5
{[%clk 0:00:34.6]} 25... Nxc5 {[%clk 0:00:45.5]} 26. Rba1 {[%clk 0:00:23.4]}
26... f4 {[%clk 0:00:35.2]} 27. gxf4 {[%clk 0:00:18.3]} 27... exf4 {[%clk
0:00:35.2]} 28. Bd4+ {[%clk 0:00:18.7]} 28... Kh7 {[%clk 0:00:25.4]} 29. Rc3
{[%clk 0:00:15.4]} 29... Bxh4 {[%clk 0:00:23.7]} 30. Rxc4 {[%clk 0:00:14.3]}
30... Bxf2 {[%clk 0:00:17.7]} 31. Bxf2 {[%clk 0:00:14]} 31... Nd7 {[%clk
0:00:17.4]} 32. Rxc8 {[%clk 0:00:12.7]} 32... Rxc8 {[%clk 0:00:17.9]} 33. c3
{[%clk 0:00:13.1]} 33... Ne5 {[%clk 0:00:18]} 34. Ra3 {[%clk 0:00:13.2]} 34...
g5 {[%clk 0:00:15.6]} 35. Rb3 {[%clk 0:00:12.9]} 35... Rc7 {[%clk 0:00:15.4]}
36. Rb4 {[%clk 0:00:10.1]} 36... h4 {[%clk 0:00:13.5]} 37. Bd4 {[%clk 0:00:09]}
37... Nd7 {[%clk 0:00:09.7]} 38. Ra4 {[%clk 0:00:04.4]} 38... Kg6 {[%clk
0:00:09.1]} 39. Ra1 {[%clk 0:00:04.2]} 39... Ne5 {[%clk 0:00:08.1]} 40. Rg1
{[%clk 0:00:03.9]} 40... Nc4 {[%clk 0:00:07.5]} 41. b4 {[%clk 0:00:02.8]} 41...
Na3 {[%clk 0:00:06.3]} 42. Kd3 {[%clk 0:00:01.9]} 42... Nb5 {[%clk 0:00:06.5]}
0-1

[Event "*** Titled Tuesday Blitz"]
[Site "Chess.com"]
[Date "2021.04.27"]
[Round "2"]
[White "Warre"]
[Black "MVM2008"]
[Result "1-0"]
[WhiteElo "2463"]
[BlackElo "2254"]
[TimeControl "180+1"]
[EndTime "10:18:51 PDT"]
[Termination "Warre won on time"]

1. d4 {[%clk 0:03:00.9]} 1... Nf6 {[%clk 0:02:59.1]} 2. Bg5 {[%clk 0:03:00.8]}
2... e6 {[%clk 0:02:49.9]} 3. e4 {[%clk 0:03:00.6]} 3... d6 {[%clk 0:02:43.3]}
4. Bd3 {[%clk 0:02:58.8]} 4... Be7 {[%clk 0:02:40.8]} 5. Ne2 {[%clk 0:02:58.6]}
5... Nbd7 {[%clk 0:02:40.1]} 6. O-O {[%clk 0:02:58.5]} 6... a6 {[%clk
0:02:34.1]} 7. Nd2 {[%clk 0:02:57.7]} 7... c5 {[%clk 0:02:33]} 8. c3 {[%clk
0:02:56.4]} 8... b5 {[%clk 0:02:30.9]} 9. a4 {[%clk 0:02:56]} 9... c4 {[%clk
0:02:24.5]} 10. Bc2 {[%clk 0:02:55.7]} 10... Bb7 {[%clk 0:02:23.9]} 11. f3
{[%clk 0:02:52.4]} 11... O-O {[%clk 0:02:22.8]} 12. Be3 {[%clk 0:02:50.8]} 12...
e5 {[%clk 0:02:20.9]} 13. b3 {[%clk 0:02:47.2]} 13... d5 {[%clk 0:02:16.2]} 14.
bxc4 {[%clk 0:02:30.1]} 14... bxc4 {[%clk 0:02:09.9]} 15. dxe5 {[%clk
0:02:24.4]} 15... Nxe5 {[%clk 0:02:08.9]} 16. Bd4 {[%clk 0:02:24.9]} 16... Nc6
{[%clk 0:02:00.1]} 17. e5 {[%clk 0:02:22.4]} 17... Nd7 {[%clk 0:01:55.2]} 18. f4
{[%clk 0:02:21]} 18... f6 {[%clk 0:01:51.1]} 19. Rb1 {[%clk 0:02:13.1]} 19...
Rb8 {[%clk 0:01:38.6]} 20. exf6 {[%clk 0:02:03.3]} 20... Nxf6 {[%clk 0:01:25]}
21. Nf3 {[%clk 0:02:00.9]} 21... Ne4 {[%clk 0:01:21.5]} 22. Be3 {[%clk
0:01:43.1]} 22... Bf6 {[%clk 0:01:11.6]} 23. Nfd4 {[%clk 0:01:36.1]} 23... Re8
{[%clk 0:01:01.7]} 24. Nxc6 {[%clk 0:01:31.7]} 24... Bxc6 {[%clk 0:01:02.6]} 25.
Bd4 {[%clk 0:01:31.8]} 25... Rxb1 {[%clk 0:00:47.2]} 26. Bxb1 {[%clk 0:01:30.1]}
26... Bxd4+ {[%clk 0:00:42.8]} 27. Qxd4 {[%clk 0:01:19.9]} 27... Bxa4 {[%clk
0:00:37.2]} 28. f5 {[%clk 0:01:10.9]} 28... Nf6 {[%clk 0:00:33]} 29. Nf4 {[%clk
0:01:09.8]} 29... Bc6 {[%clk 0:00:24.3]} 30. Ne6 {[%clk 0:01:08.1]} 30... Qe7
{[%clk 0:00:21.6]} 31. Rf3 {[%clk 0:01:01.4]} 31... Rb8 {[%clk 0:00:19.8]} 32.
Bc2 {[%clk 0:00:59.7]} 32... Rb2 {[%clk 0:00:16.3]} 33. Bd1 {[%clk 0:00:52.4]}
33... Ne4 {[%clk 0:00:14.6]} 34. Rf4 {[%clk 0:00:37.4]} 34... Rd2 {[%clk
0:00:11]} 35. Rxe4 {[%clk 0:00:27.6]} 35... Rxd4 {[%clk 0:00:10.7]} 36. Rxd4
{[%clk 0:00:28.5]} 36... Qf6 {[%clk 0:00:05.9]} 37. Bc2 {[%clk 0:00:26.3]} 37...
Qe5 {[%clk 0:00:04.1]} 38. Kf2 {[%clk 0:00:26.1]} 38... Qxh2 {[%clk 0:00:03]}
39. Rg4 {[%clk 0:00:24.7]} 39... Qe5 {[%clk 0:00:02.7]} 40. Rxg7+ {[%clk
0:00:07.7]} 40... Qxg7 {[%clk 0:00:02.9]} 41. Nxg7 {[%clk 0:00:08.6]} 41... Kxg7
{[%clk 0:00:03.8]} 42. Ke3 {[%clk 0:00:09.1]} 42... Kf6 {[%clk 0:00:04]} 43. Kd4
{[%clk 0:00:06.1]} 43... Bb7 {[%clk 0:00:01.4]} 44. g4 {[%clk 0:00:06.1]} 1-0

[Event "*** Titled Tuesday Blitz"]
[Site "Chess.com"]
[Date "2021.04.27"]
[Round "2"]
[White "davidkalashian"]
[Black "Twitch_ElhamBlitz05"]
[Result "0-1"]
[WhiteElo "2565"]
[BlackElo "2855"]
[TimeControl "180+1"]
[EndTime "10:19:00 PDT"]
[Termination "Twitch_ElhamBlitz05 won on time"]

1. e4 {[%clk 0:03:00.9]} 1... c6 {[%clk 0:03:00.1]} 2. d4 {[%clk 0:03:00.5]}
2... d5 {[%clk 0:03:01]} 3. Nc3 {[%clk 0:03:00.9]} 3... dxe4 {[%clk 0:03:01.5]}
4. Nxe4 {[%clk 0:03:01.8]} 4... Nf6 {[%clk 0:03:02.3]} 5. Nxf6+ {[%clk
0:03:01.8]} 5... exf6 {[%clk 0:03:03.2]} 6. c3 {[%clk 0:03:02.7]} 6... Bd6
{[%clk 0:03:03.8]} 7. Bd3 {[%clk 0:03:02.8]} 7... O-O {[%clk 0:03:04.4]} 8. Qc2
{[%clk 0:03:03.3]} 8... Re8+ {[%clk 0:03:05.3]} 9. Ne2 {[%clk 0:03:03.7]} 9...
h5 {[%clk 0:03:06.2]} 10. O-O {[%clk 0:02:58.9]} 10... h4 {[%clk 0:03:05.7]} 11.
h3 {[%clk 0:02:55.6]} 11... Nd7 {[%clk 0:03:05.1]} 12. Be3 {[%clk 0:02:45.9]}
12... Nf8 {[%clk 0:03:04.9]} 13. Rfe1 {[%clk 0:02:42.3]} 13... Be6 {[%clk
0:03:04.8]} 14. Bf4 {[%clk 0:02:39.6]} 14... b5 {[%clk 0:03:01.2]} 15. Qd2
{[%clk 0:02:36.1]} 15... Ng6 {[%clk 0:02:58.7]} 16. Bxd6 {[%clk 0:02:20.2]}
16... Qxd6 {[%clk 0:02:59.6]} 17. Bxg6 {[%clk 0:01:57.8]} 17... fxg6 {[%clk
0:02:59.8]} 18. Qf4 {[%clk 0:01:58.7]} 18... Qxf4 {[%clk 0:02:57.1]} 19. Nxf4
{[%clk 0:01:59.6]} 19... Bf7 {[%clk 0:02:56.2]} 20. a3 {[%clk 0:01:53.9]} 20...
a5 {[%clk 0:02:52.5]} 21. Nd3 {[%clk 0:01:47.1]} 21... g5 {[%clk 0:02:45.8]} 22.
Rxe8+ {[%clk 0:01:45.4]} 22... Rxe8 {[%clk 0:02:45.3]} 23. Re1 {[%clk
0:01:46.3]} 23... Rxe1+ {[%clk 0:02:40.6]} 24. Nxe1 {[%clk 0:01:45.9]} 24... Bg6
{[%clk 0:02:41.3]} 25. f3 {[%clk 0:01:41]} 25... Kf7 {[%clk 0:02:39]} 26. Kf2
{[%clk 0:01:40.9]} 26... Ke6 {[%clk 0:02:39]} 27. Ke3 {[%clk 0:01:37.2]} 27...
Kd5 {[%clk 0:02:36.4]} 28. b3 {[%clk 0:01:16.7]} 28... a4 {[%clk 0:02:00.7]} 29.
c4+ {[%clk 0:01:13.9]} 29... bxc4 {[%clk 0:02:01.6]} 30. bxa4 {[%clk 0:01:13.7]}
30... c3 {[%clk 0:02:02.3]} 31. a5 {[%clk 0:01:13.8]} 31... c5 {[%clk
0:02:01.3]} 32. dxc5 {[%clk 0:01:06]} 32... Kxc5 {[%clk 0:02:00.9]} 33. a4
{[%clk 0:00:50.3]} 33... Kc6 {[%clk 0:01:08.2]} 34. Nd3 {[%clk 0:00:40.3]} 34...
Kb7 {[%clk 0:00:51.2]} 35. Nb4 {[%clk 0:00:33.3]} 35... Bf5 {[%clk 0:00:43.2]}
36. a6+ {[%clk 0:00:26.1]} 36... Ka7 {[%clk 0:00:43]} 37. a5 {[%clk 0:00:25.7]}
37... Bg6 {[%clk 0:00:40]} 38. Ke2 {[%clk 0:00:23.7]} 38... Bf5 {[%clk
0:00:30.8]} 39. Ke3 {[%clk 0:00:23.8]} 39... Bd7 {[%clk 0:00:13.2]} 40. Ke2
{[%clk 0:00:06.1]} 40... Bb5+ {[%clk 0:00:10.7]} 41. Ke3 {[%clk 0:00:06.6]}
41... Bf1 {[%clk 0:00:07.8]} 42. Kf2 {[%clk 0:00:06.2]} 42... Bxa6 {[%clk
0:00:06.9]} 43. Nxa6 {[%clk 0:00:01.1]} 43... Kxa6 {[%clk 0:00:07.8]} 44. Ke3
{[%clk 0:00:01.3]} 44... Kxa5 {[%clk 0:00:08.4]} 45. Kd3 {[%clk 0:00:02.2]}
45... Kb4 {[%clk 0:00:09.3]} 46. Kc2 {[%clk 0:00:02.9]} 46... Kc4 {[%clk
0:00:09.9]} 0-1

[Event "*** Titled Tuesday Blitz"]
[Site "Chess.com"]
[Date "2021.04.27"]
[Round "2"]
[White "Vice64"]
[Black "Raud100"]
[Result "1-0"]
[WhiteElo "2665"]
[BlackElo "2453"]
[TimeControl "180+1"]
[EndTime "10:19:00 PDT"]
[Termination "Vice64 won by resignation"]

1. e4 {[%clk 0:03:00.9]} 1... d6 {[%clk 0:02:59.9]} 2. d4 {[%clk 0:03:00.7]}
2... Nf6 {[%clk 0:03:00.8]} 3. Nc3 {[%clk 0:03:00.9]} 3... g6 {[%clk 0:03:01.7]}
4. Nf3 {[%clk 0:02:59.9]} 4... Bg7 {[%clk 0:03:01.4]} 5. h3 {[%clk 0:03:00.3]}
5... c5 {[%clk 0:03:00.3]} 6. d5 {[%clk 0:02:58.4]} 6... O-O {[%clk 0:02:59.6]}
7. Bd3 {[%clk 0:02:55.8]} 7... e6 {[%clk 0:02:59]} 8. O-O {[%clk 0:02:54.4]}
8... e5 {[%clk 0:02:54.6]} 9. Nd2 {[%clk 0:02:49.6]} 9... Nh5 {[%clk 0:02:49.7]}
10. Re1 {[%clk 0:02:45.7]} 10... Nf4 {[%clk 0:02:34.6]} 11. Bf1 {[%clk
0:02:45.3]} 11... f5 {[%clk 0:02:27.1]} 12. Nc4 {[%clk 0:02:43.2]} 12... g5
{[%clk 0:01:42.4]} 13. g3 {[%clk 0:02:25]} 13... Ng6 {[%clk 0:01:41.9]} 14. exf5
{[%clk 0:02:23]} 14... Bxf5 {[%clk 0:01:42.8]} 15. a4 {[%clk 0:02:15.3]} 15...
Na6 {[%clk 0:01:39.3]} 16. Ne4 {[%clk 0:02:03.9]} 16... Bxe4 {[%clk 0:01:34.1]}
17. Rxe4 {[%clk 0:02:04.8]} 17... Nc7 {[%clk 0:01:30.8]} 18. Bg2 {[%clk
0:02:03.6]} 18... Qf6 {[%clk 0:01:27.4]} 19. Be3 {[%clk 0:01:56.4]} 19... Ne7
{[%clk 0:01:26]} 20. Rg4 {[%clk 0:01:32.9]} 20... h6 {[%clk 0:01:14.7]} 21. Qd2
{[%clk 0:01:28.4]} 21... Nf5 {[%clk 0:01:11]} 22. Re1 {[%clk 0:01:16.8]} 22...
Rf7 {[%clk 0:00:58.6]} 23. Be4 {[%clk 0:01:02]} 23... Nxe3 {[%clk 0:00:47.7]}
24. Qxe3 {[%clk 0:00:57.5]} 24... Raf8 {[%clk 0:00:48.3]} 25. Rf1 {[%clk
0:00:54.3]} 25... Ne8 {[%clk 0:00:46.5]} 26. h4 {[%clk 0:00:52.4]} 26... gxh4
{[%clk 0:00:39.4]} 27. Rxh4 {[%clk 0:00:43.6]} 27... Qe7 {[%clk 0:00:37]} 28.
Rg4 {[%clk 0:00:42.4]} 28... Nf6 {[%clk 0:00:36.5]} 29. Rg6 {[%clk 0:00:42.1]}
29... Nxe4 {[%clk 0:00:36]} 30. Qxe4 {[%clk 0:00:43]} 30... Rf6 {[%clk
0:00:35.8]} 31. Rxf6 {[%clk 0:00:41.1]} 31... Qxf6 {[%clk 0:00:36.7]} 32. Kg2
{[%clk 0:00:41.2]} 32... Rf7 {[%clk 0:00:34.2]} 33. f3 {[%clk 0:00:37.5]} 33...
Bf8 {[%clk 0:00:33.4]} 34. Ne3 {[%clk 0:00:35.4]} 34... h5 {[%clk 0:00:22.1]}
35. Rh1 {[%clk 0:00:35.1]} 35... Rh7 {[%clk 0:00:21.7]} 36. Qf5 {[%clk
0:00:19.7]} 36... Qxf5 {[%clk 0:00:21.4]} 37. Nxf5 {[%clk 0:00:20.6]} 37... Kf7
{[%clk 0:00:21.9]} 38. Ne3 {[%clk 0:00:19.5]} 38... Kg6 {[%clk 0:00:21.8]} 39.
c3 {[%clk 0:00:17.3]} 39... Be7 {[%clk 0:00:22]} 40. Nc4 {[%clk 0:00:13.4]}
40... b6 {[%clk 0:00:22]} 41. Nd2 {[%clk 0:00:13.5]} 41... a6 {[%clk 0:00:21.4]}
42. Ne4 {[%clk 0:00:13.5]} 42... Rh8 {[%clk 0:00:20.5]} 43. Rb1 {[%clk 0:00:11]}
43... Kf5 {[%clk 0:00:16.7]} 44. b4 {[%clk 0:00:10.3]} 44... c4 {[%clk
0:00:16.9]} 45. b5 {[%clk 0:00:09.5]} 45... a5 {[%clk 0:00:16.6]} 46. Rh1 {[%clk
0:00:09.7]} 46... h4 {[%clk 0:00:15.2]} 47. Nd2 {[%clk 0:00:08]} 47... Bf6
{[%clk 0:00:11.6]} 48. Nxc4 {[%clk 0:00:07.2]} 48... Rc8 {[%clk 0:00:11.4]} 49.
Nxd6+ {[%clk 0:00:06.8]} 49... Kg6 {[%clk 0:00:11.5]} 50. Nxc8 {[%clk
0:00:07.7]} 50... e4 {[%clk 0:00:12.1]} 51. fxe4 {[%clk 0:00:07.5]} 51... Bxc3
{[%clk 0:00:12.6]} 52. Nxb6 {[%clk 0:00:07.6]} 52... Kf6 {[%clk 0:00:13.5]} 53.
Nc4 {[%clk 0:00:07.9]} 1-0

[Event "*** Titled Tuesday Blitz"]
[Site "Chess.com"]
[Date "2021.04.27"]
[Round "2"]
[White "KononenkoD"]
[Black "tapu2"]
[Result "0-1"]
[WhiteElo "2508"]
[BlackElo "2726"]
[TimeControl "180+1"]
[EndTime "10:19:03 PDT"]
[Termination "tapu2 won by resignation"]

1. d4 {[%clk 0:03:00.9]} 1... Nf6 {[%clk 0:02:57.3]} 2. c4 {[%clk 0:02:59.7]}
2... e6 {[%clk 0:02:56]} 3. g3 {[%clk 0:02:58.1]} 3... d5 {[%clk 0:02:54.6]} 4.
Nf3 {[%clk 0:02:56.9]} 4... Bb4+ {[%clk 0:02:54.5]} 5. Bd2 {[%clk 0:02:56.1]}
5... a5 {[%clk 0:02:54.5]} 6. Bg2 {[%clk 0:02:55.2]} 6... O-O {[%clk 0:02:54.1]}
7. O-O {[%clk 0:02:55.6]} 7... dxc4 {[%clk 0:02:54.6]} 8. Qc2 {[%clk 0:02:36.7]}
8... Bxd2 {[%clk 0:02:53.7]} 9. Nbxd2 {[%clk 0:02:35.5]} 9... b5 {[%clk
0:02:54.1]} 10. a4 {[%clk 0:02:34.8]} 10... c6 {[%clk 0:02:54]} 11. Ne5 {[%clk
0:02:33.1]} 11... Nd5 {[%clk 0:02:53.7]} 12. e4 {[%clk 0:02:28.4]} 12... Nb4
{[%clk 0:02:53]} 13. Qc3 {[%clk 0:02:28.8]} 13... f6 {[%clk 0:02:29.4]} 14. Nef3
{[%clk 0:02:13.8]} 14... Ba6 {[%clk 0:01:51.2]} 15. Rfd1 {[%clk 0:02:05.7]}
15... Nd7 {[%clk 0:01:48.3]} 16. b3 {[%clk 0:02:02.3]} 16... cxb3 {[%clk
0:01:33.2]} 17. Nxb3 {[%clk 0:01:56.5]} 17... bxa4 {[%clk 0:00:59.9]} 18. Rxa4
{[%clk 0:01:56.9]} 18... Bb5 {[%clk 0:01:00.2]} 19. Raa1 {[%clk 0:01:57.2]}
19... Be2 {[%clk 0:00:32.9]} 20. Re1 {[%clk 0:01:46.6]} 20... Bxf3 {[%clk
0:00:30.9]} 21. Bxf3 {[%clk 0:01:47.1]} 21... Qb6 {[%clk 0:00:31.3]} 22. Reb1
{[%clk 0:01:27.9]} 22... Rfb8 {[%clk 0:00:31.1]} 23. Bg4 {[%clk 0:01:22.2]}
23... Kf7 {[%clk 0:00:19.3]} 24. Qc4 {[%clk 0:01:21.6]} 24... Re8 {[%clk
0:00:11.7]} 25. Nxa5 {[%clk 0:01:17.1]} 25... Rxa5 {[%clk 0:00:12.3]} 26. Rxa5
{[%clk 0:01:17.6]} 26... Qxa5 {[%clk 0:00:13.2]} 27. Qxb4 {[%clk 0:01:17]} 27...
Qxb4 {[%clk 0:00:13.3]} 28. Rxb4 {[%clk 0:01:17.9]} 28... Ke7 {[%clk 0:00:13.3]}
29. Rb7 {[%clk 0:01:18]} 29... Kd6 {[%clk 0:00:13.7]} 30. Kg2 {[%clk 0:01:07.8]}
30... Rb8 {[%clk 0:00:12.6]} 31. Ra7 {[%clk 0:01:07.3]} 31... Rb4 {[%clk
0:00:11.7]} 32. e5+ {[%clk 0:01:01.6]} 32... fxe5 {[%clk 0:00:12.6]} 33. dxe5+
{[%clk 0:01:02.3]} 33... Nxe5 {[%clk 0:00:13.4]} 34. Be2 {[%clk 0:01:01.5]}
34... Rb2 {[%clk 0:00:13.3]} 35. Bd1 {[%clk 0:00:59.8]} 35... Nd3 {[%clk
0:00:12.2]} 36. Rxg7 {[%clk 0:00:55.9]} 36... Nxf2 {[%clk 0:00:12.5]} 37. Bf3
{[%clk 0:00:52.8]} 37... Ng4+ {[%clk 0:00:12.8]} 38. Kh3 {[%clk 0:00:51.5]}
38... Nf6 {[%clk 0:00:12.5]} 39. Rf7 {[%clk 0:00:48.7]} 39... Ke5 {[%clk
0:00:10.7]} 40. Bxc6 {[%clk 0:00:47.9]} 40... h5 {[%clk 0:00:11.4]} 41. Bf3
{[%clk 0:00:46.9]} 41... Rf2 {[%clk 0:00:11.1]} 42. Bxh5 {[%clk 0:00:45.2]}
42... Rd2 {[%clk 0:00:09.2]} 43. Bf3 {[%clk 0:00:42.3]} 43... Kf5 {[%clk
0:00:09.4]} 44. Bg4+ {[%clk 0:00:40.7]} 44... Kg6 {[%clk 0:00:08.3]} 45. Bxe6
{[%clk 0:00:40.4]} 45... Ne4 {[%clk 0:00:07.1]} 46. Rf4 {[%clk 0:00:32.9]} 46...
Ng5+ {[%clk 0:00:07]} 47. Kg4 {[%clk 0:00:31.5]} 47... Nxe6 {[%clk 0:00:06.8]}
48. h4 {[%clk 0:00:31.9]} 48... Nxf4 {[%clk 0:00:06.8]} 49. gxf4 {[%clk
0:00:31.7]} 49... Kf6 {[%clk 0:00:06.7]} 50. h5 {[%clk 0:00:31.6]} 50... Rg2+
{[%clk 0:00:07]} 51. Kh4 {[%clk 0:00:30.4]} 51... Rg8 {[%clk 0:00:07.5]} 52. h6
{[%clk 0:00:31.3]} 52... Kg6 {[%clk 0:00:07.7]} 53. Kg4 {[%clk 0:00:31.4]} 53...
Kxh6+ {[%clk 0:00:07.9]} 54. Kf5 {[%clk 0:00:32.3]} 54... Rf8+ {[%clk
0:00:08.1]} 55. Ke5 {[%clk 0:00:32.9]} 55... Kg6 {[%clk 0:00:08.6]} 56. f5+
{[%clk 0:00:33.3]} 56... Rxf5+ {[%clk 0:00:09]} 57. Ke6 {[%clk 0:00:34.2]} 57...
Kg5 {[%clk 0:00:08.7]} 0-1

[Event "*** Titled Tuesday Blitz"]
[Site "Chess.com"]
[Date "2021.04.27"]
[Round "2"]
[White "BursaBBSatranc"]
[Black "Bigfish1995"]
[Result "0-1"]
[WhiteElo "2603"]
[BlackElo "2988"]
[TimeControl "180+1"]
[EndTime "10:19:07 PDT"]
[Termination "Bigfish1995 won by resignation"]

1. d4 {[%clk 0:03:00.9]} 1... Nf6 {[%clk 0:02:56]} 2. Nf3 {[%clk 0:03:00.9]}
2... g6 {[%clk 0:02:55.6]} 3. Bf4 {[%clk 0:03:01.3]} 3... Bg7 {[%clk 0:02:55.9]}
4. e3 {[%clk 0:03:01.7]} 4... O-O {[%clk 0:02:56.4]} 5. h3 {[%clk 0:03:01.5]}
5... c5 {[%clk 0:02:54.4]} 6. c3 {[%clk 0:03:01.6]} 6... Qb6 {[%clk 0:02:54.5]}
7. Qb3 {[%clk 0:03:01.6]} 7... d6 {[%clk 0:02:54.6]} 8. Nbd2 {[%clk 0:03:01.6]}
8... Be6 {[%clk 0:02:54.6]} 9. Qxb6 {[%clk 0:03:01.8]} 9... axb6 {[%clk
0:02:54.5]} 10. a3 {[%clk 0:03:02.7]} 10... Nc6 {[%clk 0:02:51.9]} 11. Bd3
{[%clk 0:02:57.2]} 11... Rfc8 {[%clk 0:02:50]} 12. O-O {[%clk 0:02:56.7]} 12...
Na5 {[%clk 0:02:14.7]} 13. Rac1 {[%clk 0:02:51]} 13... Nb3 {[%clk 0:02:14.1]}
14. Nxb3 {[%clk 0:02:51]} 14... Bxb3 {[%clk 0:02:14.1]} 15. e4 {[%clk
0:02:34.4]} 15... Nd7 {[%clk 0:01:55]} 16. Bg3 {[%clk 0:02:11.3]} 16... Ba4
{[%clk 0:01:51.8]} 17. Rfe1 {[%clk 0:02:05.1]} 17... Bh6 {[%clk 0:01:01.9]} 18.
Ra1 {[%clk 0:02:01.2]} 18... cxd4 {[%clk 0:00:57.1]} 19. cxd4 {[%clk 0:01:43.1]}
19... Bc2 {[%clk 0:00:57]} 20. Bb5 {[%clk 0:01:43.3]} 20... Nf6 {[%clk
0:00:56.8]} 21. e5 {[%clk 0:01:31.2]} 21... dxe5 {[%clk 0:00:54.7]} 22. Bxe5
{[%clk 0:01:15.1]} 22... Nd5 {[%clk 0:00:53.1]} 23. g4 {[%clk 0:00:39.7]} 23...
Ba4 {[%clk 0:00:50.2]} 24. Bd3 {[%clk 0:00:31.4]} 24... Bc6 {[%clk 0:00:50.2]}
25. g5 {[%clk 0:00:25]} 25... Bg7 {[%clk 0:00:45.4]} 26. Bxg7 {[%clk 0:00:24.4]}
26... Kxg7 {[%clk 0:00:45.1]} 27. Be4 {[%clk 0:00:23.2]} 27... e6 {[%clk
0:00:40.6]} 28. Rac1 {[%clk 0:00:22.1]} 28... Ne7 {[%clk 0:00:38]} 29. Bxc6
{[%clk 0:00:20]} 29... bxc6 {[%clk 0:00:38]} 30. Ne5 {[%clk 0:00:20.1]} 30...
Ra4 {[%clk 0:00:37.5]} 31. Red1 {[%clk 0:00:18.2]} 31... Ra5 {[%clk 0:00:26]}
32. Rc4 {[%clk 0:00:10.4]} 32... Rd5 {[%clk 0:00:26]} 33. Rdc1 {[%clk
0:00:10.6]} 33... c5 {[%clk 0:00:20.5]} 34. Nf3 {[%clk 0:00:07.3]} 34... Nf5
{[%clk 0:00:17.3]} 35. dxc5 {[%clk 0:00:06.8]} 35... bxc5 {[%clk 0:00:17.5]} 36.
b4 {[%clk 0:00:07]} 36... Ra8 {[%clk 0:00:17.5]} 37. bxc5 {[%clk 0:00:05]} 37...
Rxa3 {[%clk 0:00:17.4]} 38. R1c3 {[%clk 0:00:05.6]} 38... Ra1+ {[%clk
0:00:16.5]} 39. Kg2 {[%clk 0:00:06]} 39... Ra2 {[%clk 0:00:15.6]} 40. Rc2 {[%clk
0:00:06.1]} 40... Ra7 {[%clk 0:00:14.4]} 41. c6 {[%clk 0:00:06.3]} 41... Rc7
{[%clk 0:00:15]} 42. Rb2 {[%clk 0:00:06.1]} 42... Ne7 {[%clk 0:00:14.8]} 43.
Rbc2 {[%clk 0:00:06.7]} 43... h6 {[%clk 0:00:13.5]} 44. Nd4 {[%clk 0:00:06.1]}
44... Rxg5+ {[%clk 0:00:13]} 45. Kf1 {[%clk 0:00:06.4]} 45... Rd5 {[%clk
0:00:13.9]} 46. Nf3 {[%clk 0:00:06.3]} 46... Kf6 {[%clk 0:00:13.2]} 47. Nd2
{[%clk 0:00:06.6]} 47... Kg7 {[%clk 0:00:12.4]} 48. Ne4 {[%clk 0:00:07]} 48...
f5 {[%clk 0:00:11.7]} 49. Nc5 {[%clk 0:00:06.5]} 49... Rxc6 {[%clk 0:00:11.5]}
50. Nb3 {[%clk 0:00:03]} 50... Rxc4 {[%clk 0:00:11.7]} 51. Rxc4 {[%clk
0:00:03.9]} 51... Kf6 {[%clk 0:00:12.1]} 52. Rc6 {[%clk 0:00:04.1]} 52... Nxc6
{[%clk 0:00:10.9]} 0-1